bitfinex/quotes_BTCUSD_20250601
["timestamp","ask_amount","ask_price","bid_price","bid_amount"]
[1748755600487,1.37965818,104630.0,104620.0,1.03496937]
[1748755600680,1.37965818,104630.0,104620.0,1.01707385]
[1748755600889,1.37965818,104630.0,104620.0,1.03496937]
[1748755601241,1.37965818,104630.0,104620.0,1.04392039]
[1748755601685,1.37965818,104630.0,104620.0,1.04392691]
[1748755602745,1.37965818,104630.0,104620.0,1.04393399]
[1748755603164,1.37965818,104630.0,104620.0,1.03497589]
[1748755603457,1.37965818,104630.0,104620.0,1.04393458]
[1748755604220,1.37965818,104630.0,104620.0,1.04395041]
[1748755604418,1.37965818,104630.0,104620.0,1.01707385]
[1748755604622,1.37965818,104630.0,104620.0,1.0260327]
[1748755604853,1.37965818,104630.0,104620.0,1.04395044]
[1748755605498,1.37965818,104630.0,104620.0,1.04395047]
[1748755606249,1.37965818,104630.0,104620.0,1.0349916]
[1748755606445,1.37965818,104630.0,104620.0,1.04395049]
[1748755607467,1.37965818,104630.0,104620.0,1.0439508]
[1748755607759,1.37965818,104630.0,104620.0,1.04395091]
[1748755608640,1.37965818,104630.0,104620.0,1.04395095]
[1748755609182,1.08841818,104630.0,104620.0,1.04395095]
[1748755609388,1.38893538,104630.0,104620.0,1.04395095]
[1748755609589,1.38893538,104630.0,104620.0,1.043951]
[1748755611137,1.38893538,104630.0,104620.0,1.04395122]
[1748755611346,1.38893538,104630.0,104620.0,1.04395166]
[1748755611683,1.38893538,104630.0,104620.0,1.0439517]
[1748755612533,1.38893538,104630.0,104620.0,1.04395206]
[1748755612734,1.38893538,104630.0,104620.0,1.04395224]
[1748755613338,1.38893538,104630.0,104620.0,1.04395255]
[1748755613730,1.38893538,104630.0,104620.0,1.04395316]
[1748755614679,1.38893538,104630.0,104620.0,1.04395343]
[1748755614879,1.38893538,104630.0,104620.0,1.04395358]
[1748755615512,1.38893538,104630.0,104620.0,1.04395366]
[1748755616306,1.38893538,104630.0,104620.0,1.03499375]
[1748755616519,1.38893538,104630.0,104620.0,1.0260338]
[1748755616739,1.38893538,104630.0,104620.0,1.03499376]
[1748755616939,1.38893538,104630.0,104620.0,1.04395371]
[1748755617368,1.38893538,104630.0,104620.0,1.04395373]
[1748755617811,1.38893538,104630.0,104620.0,1.02603381]
[1748755618025,1.38893538,104630.0,104620.0,1.03499377]
[1748755618239,1.38893538,104630.0,104620.0,1.04395373]
[1748755619239,1.38893538,104630.0,104620.0,1.02603381]
[1748755619448,1.38893538,104630.0,104620.0,1.04395376]
[1748755621163,1.38893538,104630.0,104620.0,1.03499379]
[1748755621370,1.38893538,104630.0,104620.0,1.02603383]
[1748755621555,1.38893538,104630.0,104620.0,1.04395379]
[1748755621776,1.37263538,104630.0,104620.0,1.04395379]
[1748755622196,1.36202117,104630.0,104620.0,1.04395379]
[1748755622390,1.36202117,104630.0,104620.0,1.04395458]
[1748755622846,1.36202117,104630.0,104620.0,1.0439546]
[1748755623274,1.36202117,104630.0,104620.0,1.0439547]
[1748755623468,1.36202117,104630.0,104620.0,1.02603413]
[1748755623680,1.36202117,104630.0,104620.0,1.04395372]
[1748755624632,1.36202117,104630.0,104620.0,1.043952]
[1748755625014,1.36202117,104630.0,104620.0,1.04395112]
[1748755626289,1.36202117,104630.0,104620.0,1.04394822]
[1748755626763,1.36202117,104630.0,104620.0,1.0439473]
[1748755627427,1.36202117,104630.0,104620.0,1.02603142]
[1748755627816,1.36202117,104630.0,104620.0,1.0439456]
[1748755628259,1.36202117,104630.0,104620.0,1.03498835]
[1748755628461,1.36202117,104630.0,104620.0,1.04394545]
[1748755629499,1.36202117,104630.0,104620.0,1.04394492]
[1748755629947,1.36202117,104630.0,104620.0,1.04394416]
[1748755630841,1.07086117,104630.0,104620.0,1.04394416]
[1748755631057,1.36174117,104630.0,104620.0,1.04644416]
[1748755631278,1.07086117,104630.0,104620.0,1.04644332]
[1748755631496,1.07086117,104630.0,104620.0,1.04644307]
[1748755631734,1.36174117,104630.0,104620.0,1.04644306]
[1748755632134,1.36174117,104630.0,104620.0,1.04644297]
[1748755633129,1.36174117,104630.0,104620.0,1.04644305]
[1748755633530,1.36174117,104630.0,104620.0,1.04644297]
[1748755633926,1.36174117,104630.0,104620.0,1.04644312]
[1748755634535,1.36174117,104630.0,104620.0,1.04644316]
[1748755634750,1.36174117,104630.0,104620.0,1.04644308]
[1748755634975,1.36174117,104630.0,104620.0,1.04644329]
[1748755635182,1.36174117,104630.0,104620.0,1.01957385]
[1748755635390,1.36174117,104630.0,104620.0,1.03748674]
[1748755635868,1.36174117,104630.0,104620.0,1.01957385]
[1748755636256,1.36174117,104630.0,104620.0,1.04644318]
[1748755636455,1.36174117,104630.0,104620.0,1.04644316]
[1748755636655,1.36174117,104630.0,104620.0,1.04394332]
[1748755637874,1.36174117,104630.0,104620.0,1.04394337]
[1748755638667,1.36174117,104630.0,104620.0,1.04394363]
[1748755638867,1.36174117,104630.0,104620.0,1.02603044]
[1748755639072,1.36174117,104630.0,104620.0,1.04394363]
[1748755639506,1.36174117,104630.0,104620.0,1.04394362]
[1748755639909,1.36174117,104630.0,104620.0,1.04394373]
[1748755640115,1.36174117,104630.0,104620.0,1.02603043]
[1748755640327,1.36174117,104630.0,104620.0,1.04394372]
[1748755640544,1.36174117,104630.0,104620.0,1.04394378]
[1748755640756,1.36174117,104630.0,104620.0,1.01707385]
[1748755640966,1.36174117,104630.0,104620.0,1.0439438]
[1748755641576,1.36174117,104630.0,104620.0,1.0260305]
[1748755641876,1.36174117,104630.0,104620.0,1.04394399]
[1748755642296,1.36174117,104630.0,104620.0,1.04394402]
[1748755642731,1.36174117,104630.0,104620.0,1.02603057]
[1748755642945,1.36174117,104630.0,104620.0,1.04394402]
[1748755643804,1.36174117,104630.0,104620.0,1.04394426]
[1748755644227,1.36174117,104630.0,104620.0,1.02603065]
[1748755644453,1.36174117,104630.0,104620.0,1.04394426]
[1748755645292,1.36174117,104630.0,104620.0,1.04394435]
[1748755645942,1.36174117,104630.0,104620.0,1.0439448]
[1748755646229,1.36174117,104630.0,104620.0,1.03498782]
[1748755646455,1.36174117,104630.0,104620.0,1.0439448]
[1748755646663,1.36174117,104630.0,104620.0,1.043945]
[1748755646919,1.36170117,104630.0,104620.0,1.0439451]
[1748755647515,1.36170117,104630.0,104620.0,1.04394523]
[1748755647758,1.36170117,104630.0,104620.0,1.0439453]
[1748755648449,1.36170117,104630.0,104620.0,1.04394539]
[1748755648671,1.07086117,104630.0,104620.0,1.04394539]
[1748755648878,1.36174117,104630.0,104620.0,1.01707385]
[1748755649090,1.36174117,104630.0,104620.0,1.04394555]
[1748755649504,1.36174117,104630.0,104620.0,1.04394562]
[1748755649714,1.36174117,104630.0,104620.0,1.04394584]
[1748755649969,1.36174117,104630.0,104620.0,1.04394588]
[1748755650412,1.36174117,104630.0,104620.0,1.01707385]
[1748755650626,1.36174117,104630.0,104620.0,1.0439457]
[1748755650842,1.36174117,104630.0,104620.0,1.04394568]
[1748755651251,1.36174117,104630.0,104620.0,1.04394564]
[1748755651882,1.36174117,104630.0,104620.0,1.03498838]
[1748755652090,1.36174117,104630.0,104620.0,1.02603111]
[1748755652260,1.36174117,104630.0,104620.0,1.04394579]
[1748755652485,1.36174117,104630.0,104620.0,1.04394587]
[1748755652651,1.36174117,104630.0,104620.0,1.01707385]
[1748755652849,1.36174117,104630.0,104620.0,1.04394587]
[1748755653757,1.36174117,104630.0,104620.0,1.02603119]
[1748755653971,1.36174117,104630.0,104620.0,1.04394567]
[1748755654234,1.36174117,104630.0,104620.0,1.0349884]
[1748755654458,1.36174117,104630.0,104620.0,1.04394567]
[1748755654642,1.36174117,104630.0,104620.0,1.04504567]
[1748755655367,1.36174117,104630.0,104620.0,1.04644567]
[1748755655619,1.36174117,104630.0,104620.0,1.01957385]
[1748755655833,1.36174117,104630.0,104620.0,1.0464463]
[1748755656215,1.36174117,104630.0,104620.0,1.03748882]
[1748755656422,1.36174117,104630.0,104620.0,1.04644632]
[1748755657065,1.36174117,104630.0,104620.0,1.04644681]
[1748755657485,1.36174117,104630.0,104620.0,1.04394681]
[1748755657728,1.36174117,104630.0,104620.0,1.04394744]
[1748755658425,1.36174117,104630.0,104620.0,1.04394745]
[1748755658633,1.36174117,104630.0,104620.0,1.04394747]
[1748755658947,1.36174117,104630.0,104620.0,1.02603172]
[1748755659160,1.36174117,104630.0,104620.0,1.01707385]
[1748755659349,1.36174117,104630.0,104620.0,1.04394837]
[1748755659784,1.36174117,104630.0,104620.0,1.04394879]
[1748755659989,1.36162117,104630.0,104620.0,1.04504962]
[1748755660648,1.36162117,104630.0,104620.0,1.04394962]
[1748755661067,1.36162117,104630.0,104620.0,1.03499103]
[1748755661289,1.36162117,104630.0,104620.0,1.04395035]
[1748755661505,1.36162117,104630.0,104620.0,1.04395182]
[1748755661861,1.36162117,104630.0,104620.0,1.04395194]
[1748755662082,1.36162117,104630.0,104620.0,1.043952]
[1748755662617,1.36162117,104630.0,104620.0,1.04395199]
[1748755662904,1.36162117,104630.0,104620.0,1.04395198]
[1748755663110,1.35226397,104630.0,104620.0,1.04395198]
[1748755663597,1.35226397,104630.0,104620.0,1.04395196]
[1748755663738,1.35226397,104630.0,104620.0,1.04395195]
[1748755664157,1.35226397,104630.0,104620.0,1.04395193]
[1748755664788,1.35226397,104630.0,104620.0,1.02603321]
[1748755664995,1.35226397,104630.0,104620.0,1.04395194]
[1748755665581,1.35226397,104630.0,104620.0,1.04395193]
[1748755666096,1.35226397,104630.0,104620.0,1.03499257]
[1748755666315,1.35226397,104630.0,104620.0,1.04395193]
[1748755666679,1.35226397,104630.0,104620.0,1.04395194]
[1748755667165,1.35226397,104630.0,104620.0,1.03499258]
[1748755667371,1.01226397,104630.0,104620.0,1.04395194]
[1748755668470,1.01226397,104630.0,104620.0,1.04395195]
[1748755669320,1.01226397,104630.0,104620.0,1.043952]
[1748755669828,1.01226397,104630.0,104620.0,1.01707385]
[1748755670005,1.01226397,104630.0,104620.0,1.05291145]
[1748755670479,1.01226397,104630.0,104620.0,1.03499265]
[1748755670664,1.01226397,104630.0,104620.0,1.05291143]
[1748755670876,1.01226397,104630.0,104620.0,1.04395204]
[1748755671076,1.01226397,104630.0,104620.0,1.05291143]
[1748755671312,1.01226397,104630.0,104620.0,1.05291148]
[1748755671538,1.01226397,104630.0,104620.0,1.02603325]
[1748755671740,1.01226397,104630.0,104620.0,1.05291151]
[1748755672130,1.01226397,104630.0,104620.0,1.03499267]
[1748755672330,1.01226397,104630.0,104620.0,1.05291151]
[1748755673686,1.01226397,104630.0,104620.0,1.04395215]
[1748755673839,1.01226397,104630.0,104620.0,1.04395216]
[1748755674059,1.01226397,104630.0,104620.0,1.05281182]
[1748755674276,1.01226397,104630.0,104620.0,1.05271346]
[1748755674915,1.01226397,104630.0,104620.0,1.04375407]
[1748755675227,1.01226397,104630.0,104620.0,1.05271355]
[1748755675992,1.01226397,104630.0,104620.0,1.03479462]
[1748755677088,1.01226397,104630.0,104620.0,1.0258351]
[1748755677306,1.01226397,104630.0,104620.0,1.05271382]
[1748755677695,1.01226397,104630.0,104620.0,1.04375425]
[1748755678444,1.01226397,104630.0,104620.0,1.0258351]
[1748755678609,1.01226397,104630.0,104620.0,1.03479474]
[1748755678826,1.01226397,104630.0,104620.0,1.0437546]
[1748755679039,1.01226397,104630.0,104620.0,1.05271435]
[1748755679864,1.01226397,104630.0,104620.0,1.05271523]
[1748755681455,1.01226397,104630.0,104620.0,1.0258351]
[1748755681865,1.01226397,104630.0,104620.0,1.05271523]
[1748755683920,1.02846397,104630.0,104620.0,1.05271523]
[1748755684346,1.04456397,104630.0,104620.0,1.03479514]
[1748755684573,1.04456397,104630.0,104620.0,1.05271523]
[1748755685699,1.04456397,104630.0,104620.0,1.05271522]
[1748755687403,1.04456397,104630.0,104620.0,1.04375518]
[1748755687628,1.04456397,104630.0,104620.0,1.03479514]
[1748755687856,1.04456397,104630.0,104620.0,1.05271522]
[1748755688907,1.02836397,104630.0,104620.0,1.05271522]
[1748755689404,1.01226397,104630.0,104620.0,1.05271522]
[1748755690349,1.01226397,104630.0,104620.0,1.04375518]
[1748755690531,1.01226397,104630.0,104620.0,1.05271522]
[1748755691235,1.01226397,104630.0,104620.0,1.04375518]
[1748755691409,1.01226397,104630.0,104620.0,1.05271523]
[1748755692182,1.01226397,104630.0,104620.0,1.03479514]
[1748755692373,1.01226397,104630.0,104620.0,1.05271523]
[1748755692636,1.01226397,104630.0,104620.0,1.0258351]
[1748755692842,1.01226397,104630.0,104620.0,1.05271523]
[1748755693202,1.01226397,104630.0,104620.0,1.0258351]
[1748755693428,1.01226397,104630.0,104620.0,1.05271523]
[1748755694036,1.01226397,104630.0,104620.0,1.05271525]
[1748755694641,1.01226397,104630.0,104620.0,1.05271321]
[1748755695518,1.01226397,104630.0,104620.0,1.03479447]
[1748755695731,1.01226397,104630.0,104620.0,1.05271321]
[1748755696152,1.01226397,104630.0,104620.0,1.05271313]
[1748755696348,1.01226397,104630.0,104620.0,1.03479444]
[1748755696557,1.01226397,104630.0,104620.0,1.05271208]
[1748755697669,1.01226397,104630.0,104620.0,1.0527112]
[1748755697874,1.01226397,104630.0,104620.0,1.04375203]
[1748755698085,1.01226397,104630.0,104620.0,1.05271049]
[1748755698237,1.02186304,104630.0,104620.0,1.05271049]
[1748755698700,1.02186304,104630.0,104620.0,1.05270971]
[1748755699704,1.02186304,104630.0,104620.0,1.03479311]
[1748755699917,1.02186304,104630.0,104620.0,1.05270913]
[1748755700554,0.73110304,104630.0,104620.0,1.05270913]
[1748755700758,1.02130304,104630.0,104620.0,1.05270893]
[1748755701195,1.02130304,104630.0,104620.0,1.04375092]
[1748755701390,1.02130304,104630.0,104620.0,1.0258351]
[1748755701525,1.02130304,104630.0,104620.0,1.05270851]
[1748755701716,1.02130304,104630.0,104620.0,1.0258351]
[1748755701921,1.02130304,104630.0,104620.0,1.05270851]
[1748755702572,1.02130304,104630.0,104620.0,1.05270846]
[1748755703163,1.02130304,104630.0,104620.0,1.05270844]
[1748755703556,1.02130304,104630.0,104620.0,1.05270823]
[1748755703690,1.02130304,104630.0,104620.0,1.0527082]
[1748755703904,1.02130304,104630.0,104620.0,1.05270818]
[1748755704171,1.02130304,104630.0,104620.0,1.05270815]
[1748755704577,1.02130304,104630.0,104620.0,1.05270814]
[1748755704753,1.02130304,104630.0,104620.0,1.05270812]
[1748755705182,1.02130304,104630.0,104620.0,1.05270808]
[1748755705416,1.02130304,104630.0,104620.0,1.05270812]
[1748755705620,1.02130304,104630.0,104620.0,1.05270808]
[1748755706008,1.02130304,104630.0,104620.0,1.05270819]
[1748755706284,1.02130304,104630.0,104620.0,1.05270825]
[1748755707339,1.02130304,104630.0,104620.0,1.0258351]
[1748755707547,1.02130304,104630.0,104620.0,1.05270825]
[1748755707756,1.02130304,104630.0,104620.0,1.03479281]
[1748755707983,1.02130304,104630.0,104620.0,1.05270826]
[1748755708171,1.02130304,104630.0,104620.0,1.03479282]
[1748755708374,1.02130304,104630.0,104620.0,1.05270826]
[1748755708696,1.02130304,104630.0,104620.0,1.05270825]
[1748755709302,1.02130304,104630.0,104620.0,1.05270826]
[1748755709519,0.99260404,104630.0,104620.0,1.05270826]
[1748755709733,0.99260404,104630.0,104620.0,1.05270829]
[1748755709904,0.99260404,104630.0,104620.0,1.05270828]
[1748755710121,0.99260404,104630.0,104620.0,1.04375058]
[1748755710328,1.00780404,104630.0,104620.0,1.05270832]
[1748755710768,1.02350404,104630.0,104620.0,1.05270832]
[1748755710971,1.02350404,104630.0,104620.0,1.05270837]
[1748755711097,1.02350404,104630.0,104620.0,1.05270832]
[1748755711319,1.02350404,104630.0,104620.0,1.03479284]
[1748755711544,1.02350404,104630.0,104620.0,1.05270842]
[1748755712225,1.02350404,104630.0,104620.0,1.04375065]
[1748755712447,1.02350404,104630.0,104620.0,1.05270848]
[1748755712636,1.02350404,104630.0,104620.0,1.05270856]
[1748755713139,1.02350404,104630.0,104620.0,1.0527086]
[1748755713736,1.02350404,104630.0,104620.0,1.04375087]
[1748755714007,1.02350404,104630.0,104620.0,1.05270875]
[1748755714225,1.02350404,104630.0,104620.0,1.04375087]
[1748755714467,1.02350404,104630.0,104620.0,1.05270893]
[1748755715446,1.02350404,104630.0,104620.0,1.04375099]
[1748755715660,1.00830404,104630.0,104620.0,1.052709]
[1748755715847,0.99260404,104630.0,104620.0,1.05270913]
[1748755716281,0.99260404,104630.0,104620.0,1.05270923]
[1748755716710,0.99260404,104630.0,104620.0,1.05270922]
[1748755718842,0.99260404,104630.0,104620.0,1.05271034]
[1748755719216,0.99260404,104630.0,104620.0,1.03479351]
[1748755719445,0.99260404,104630.0,104620.0,1.04375234]
[1748755719709,0.99260404,104630.0,104620.0,1.05271096]
[1748755721798,0.99260404,104630.0,104620.0,1.05271291]
[1748755722272,0.99260404,104630.0,104620.0,1.0527151]
[1748755723732,0.99260404,104630.0,104620.0,1.05271511]
[1748755724429,0.99260404,104630.0,104620.0,1.05271517]
[1748755724689,0.99260404,104630.0,104620.0,1.05271518]
[1748755724904,0.99260404,104630.0,104620.0,1.05271531]
[1748755725588,0.99260404,104630.0,104620.0,1.05271525]
[1748755725814,0.99260404,104630.0,104620.0,1.0258351]
[1748755726020,0.99260404,104630.0,104620.0,1.05271513]
[1748755727168,0.99260404,104630.0,104620.0,1.05271505]
[1748755727605,0.99260404,104630.0,104620.0,1.0437551]
[1748755727816,0.99260404,104630.0,104620.0,1.0527151]
[1748755728063,0.99260404,104630.0,104620.0,1.0258351]
[1748755728275,0.99260404,104630.0,104620.0,1.05271508]
[1748755729266,0.99260404,104630.0,104620.0,1.0258351]
[1748755729403,0.99260404,104630.0,104620.0,1.05271507]
[1748755729831,0.99260404,104630.0,104620.0,1.04375508]
[1748755730030,0.99260404,104630.0,104620.0,1.04375509]
[1748755730232,0.99260404,104630.0,104620.0,1.05271508]
[1748755730539,0.99260404,104630.0,104620.0,1.05271493]
[1748755731087,0.99260404,104630.0,104620.0,1.04375499]
[1748755731289,0.99260404,104630.0,104620.0,1.05271493]
[1748755731552,0.99260404,104630.0,104620.0,1.05271487]
[1748755732401,0.99260404,104630.0,104620.0,1.05271486]
[1748755733337,0.99260404,104630.0,104620.0,1.0258351]
[1748755733524,0.99260404,104630.0,104620.0,1.05271484]
[1748755733733,0.99260404,104630.0,104620.0,1.05271485]
[1748755734201,0.99260404,104630.0,104620.0,1.05271487]
[1748755735604,0.99260404,104630.0,104620.0,1.03479506]
[1748755735786,0.99260404,104630.0,104620.0,1.05271498]
[1748755736329,0.99260404,104630.0,104620.0,1.05271499]
[1748755736996,0.99260404,104630.0,104620.0,1.05271498]
[1748755737465,0.99260404,104630.0,104620.0,1.05271496]
[1748755738562,0.99260404,104630.0,104620.0,1.05271497]
[1748755738855,0.99260404,104630.0,104620.0,1.0258351]
[1748755739064,0.99260404,104630.0,104620.0,1.05271486]
[1748755739269,0.99260404,104630.0,104620.0,1.03479502]
[1748755739487,0.99260404,104630.0,104620.0,1.05271488]
[1748755739694,0.99260404,104630.0,104620.0,1.05271486]
[1748755740606,0.99260404,104630.0,104620.0,1.05271485]
[1748755740967,0.99260404,104630.0,104620.0,1.05271474]
[1748755741547,0.99260404,104630.0,104620.0,1.05271475]
[1748755741767,0.99260404,104630.0,104620.0,1.04375487]
[1748755741971,0.99260404,104630.0,104620.0,1.05271475]
[1748755742238,0.99260404,104630.0,104620.0,1.05271478]
[1748755742450,0.99260404,104630.0,104620.0,1.05271476]
[1748755744159,0.99260404,104630.0,104620.0,1.03479499]
[1748755744357,0.99260404,104630.0,104620.0,1.05271472]
[1748755744820,0.99260404,104630.0,104620.0,1.05271478]
[1748755745589,1.38093756,104630.0,104620.0,1.0258351]
[1748755745802,1.42327343,104630.0,104620.0,1.0258351]
[1748755746266,1.45197543,104630.0,104620.0,1.0258351]
[1748755748218,1.54037543,104630.0,104620.0,1.0258351]
[1748755748349,1.54037543,104630.0,104620.0,1.02182225]
[1748755749724,2.02567543,104630.0,104620.0,1.02182225]
[1748755749910,1.95954689,104630.0,104620.0,1.02182225]
[1748755753082,1.94994782,104630.0,104620.0,1.02182225]
[1748755756958,1.57134782,104630.0,104620.0,1.02182225]
[1748755757174,1.94994782,104630.0,104620.0,1.02182225]
[1748755757414,1.98174782,104630.0,104620.0,1.02182225]
[1748755762351,1.94994782,104630.0,104620.0,1.02182225]
[1748755773849,1.96624782,104630.0,104620.0,1.02182225]
[1748755774158,1.98184782,104630.0,104620.0,1.02182225]
[1748755778720,1.96554782,104630.0,104620.0,1.02182225]
[1748755778856,1.94994782,104630.0,104620.0,1.02182225]
[1748755782049,1.94990782,104630.0,104620.0,1.02182225]
[1748755784721,1.94945192,104630.0,104620.0,1.02182225]
[1748755785633,2.01552689,104630.0,104620.0,1.02182225]
[1748755789008,2.02501408,104630.0,104620.0,1.02182225]
[1748755792177,2.04151408,104630.0,104620.0,1.02182225]
[1748755792422,2.05671408,104630.0,104620.0,1.02182225]
[1748755793025,2.05671408,104630.0,104620.0,1.01286285]
[1748755800182,1.76659408,104630.0,104620.0,1.01286285]
[1748755800503,2.05667408,104630.0,104620.0,1.01286285]
[1748755805063,1.75205323,104630.0,104620.0,1.01286285]
[1748755805498,2.04213323,104630.0,104620.0,1.01286285]
[1748755807697,2.02563323,104630.0,104620.0,1.01286285]
[1748755807908,2.01043323,104630.0,104620.0,1.01286285]
[1748755814463,2.01044355,104630.0,104620.0,1.01286285]
[1748755825610,2.02544355,104630.0,104620.0,1.01286285]
[1748755826025,1.75176355,104630.0,104620.0,1.01286285]
[1748755826294,2.04180355,104630.0,104620.0,1.01286285]
[1748755830922,2.04179209,104630.0,104620.0,1.01286285]
[1748755831306,1.97571826,104630.0,104620.0,1.01286285]
[1748755831518,2.04179187,104630.0,104620.0,1.01286285]
[1748755831723,2.02679187,104630.0,104620.0,1.01286285]
[1748755832132,2.01039187,104630.0,104620.0,1.01286285]
[1748755835452,2.02689187,104630.0,104620.0,1.01286285]
[1748755835877,2.04199187,104630.0,104620.0,1.01286285]
[1748755840022,2.04199079,104630.0,104620.0,1.01286285]
[1748755842347,2.04199128,104630.0,104620.0,1.01286285]
[1748755843159,2.03250409,104630.0,104620.0,1.01286285]
[1748755851713,2.03250558,104630.0,104620.0,1.01286285]
[1748755862445,2.0325109,104630.0,104620.0,1.01286285]
[1748755862846,2.0009109,104630.0,104620.0,1.01286285]
[1748755869445,2.0166109,104630.0,104620.0,1.01286285]
[1748755870093,2.0322109,104630.0,104620.0,1.01286285]
[1748755873693,2.03226402,104630.0,104620.0,1.01286285]
[1748755874755,2.01656402,104630.0,104620.0,1.01286285]
[1748755875302,2.00096402,104630.0,104620.0,1.01286285]
[1748755878803,2.01063395,104630.0,104620.0,1.01286285]
[1748755887841,2.02643395,104630.0,104620.0,1.01186285]
[1748755888065,2.02643395,104630.0,104620.0,1.01086285]
[1748755888443,2.04293395,104630.0,104620.0,1.01086285]
[1748755892201,2.00913769,104630.0,104620.0,1.01086285]
[1748755892489,1.976801,104630.0,104620.0,1.01086285]
[1748755893030,1.961001,104630.0,104620.0,1.01086285]
[1748755893940,1.977601,104630.0,104620.0,1.01086285]
[1748755894117,2.04374154,104630.0,104620.0,1.01086285]
[1748755897831,2.04374889,104630.0,104620.0,1.01086285]
[1748755900000,2.01064889,104630.0,104620.0,1.01086285]
[1748755903808,2.01065944,104630.0,104620.0,1.01086285]
[1748755904136,2.02665944,104630.0,104620.0,1.01086285]
[1748755904778,2.04205944,104630.0,104620.0,1.01086285]
[1748755904996,2.01065944,104630.0,104620.0,1.01086285]
[1748755909206,2.01066554,104630.0,104620.0,1.01086285]
[1748755916598,2.02666554,104630.0,104620.0,1.01086285]
[1748755917544,2.04206554,104630.0,104620.0,1.01086285]
[1748755919868,2.04178554,104630.0,104620.0,1.01086285]
[1748755923675,2.04179288,104630.0,104620.0,1.01086285]
[1748755928319,2.04177872,104630.0,104620.0,1.01086285]
[1748755931222,2.04173872,104630.0,104620.0,1.01086285]
[1748755931885,1.66357872,104630.0,104620.0,1.01086285]
[1748755932120,2.04153872,104630.0,104620.0,1.01086285]
[1748755932809,1.5943783,104630.0,104620.0,1.2301069]
[1748755933004,1.89365578,104630.0,104620.0,1.23682627]
[1748755933247,1.88398585,104630.0,104620.0,1.2301065]
[1748755933467,1.88398585,104630.0,104620.0,1.2368256]
[1748755933698,1.87442846,104630.0,104620.0,1.03609926]
[1748755933925,1.86487098,104630.0,104620.0,1.03609926]
[1748755934152,1.86487098,104630.0,104620.0,1.02937411]
[1748755934342,1.86487098,104630.0,104620.0,1.02937393]
[1748755934769,1.86487098,104630.0,104620.0,1.02042125]
[1748755935202,1.86487098,104630.0,104620.0,1.02937151]
[1748755935347,1.86487098,104630.0,104620.0,1.02937128]
[1748755935722,1.86487098,104630.0,104620.0,1.02042125]
[1748755936021,1.86487098,104630.0,104620.0,1.01086285]
[1748755936767,1.86487098,104630.0,104620.0,1.01981291]
[1748755936974,1.86487098,104630.0,104620.0,1.01086285]
[1748755937402,1.86487098,104630.0,104620.0,1.01981267]
[1748755937614,1.86487098,104630.0,104620.0,1.01086285]
[1748755938158,1.86487098,104630.0,104620.0,1.01981118]
[1748755939006,1.75777438,104630.0,104620.0,1.01086285]
[1748755939258,1.75777438,104630.0,104620.0,1.01981083]
[1748755939462,1.75777438,104630.0,104620.0,1.01481081]
[1748755939668,1.75777438,104630.0,104620.0,1.0148108]
[1748755940082,1.75777438,104630.0,104620.0,1.00586285]
[1748755940291,1.75777438,104630.0,104620.0,1.01480932]
[1748755940520,1.41777438,104630.0,104620.0,1.00586285]
[1748755940726,1.41777438,104630.0,104620.0,1.01480932]
[1748755941329,1.41777438,104630.0,104620.0,1.00586285]
[1748755941533,1.41777438,104630.0,104620.0,1.01480904]
[1748755941740,1.41777438,104630.0,104620.0,1.01480803]
[1748755942341,1.41777438,104630.0,104620.0,1.01480777]
[1748755943180,1.41777438,104630.0,104620.0,1.00586285]
[1748755943390,1.41777438,104630.0,104620.0,1.01480709]
[1748755944247,1.41777438,104630.0,104620.0,1.01480688]
[1748755944445,1.41777438,104630.0,104620.0,1.01480687]
[1748755944654,1.41777438,104630.0,104620.0,1.00586285]
[1748755945272,1.41777438,104630.0,104620.0,1.01480688]
[1748755945480,1.41777438,104630.0,104620.0,1.00586285]
[1748755946109,1.41777438,104630.0,104620.0,1.01480688]
[1748755946323,1.41777438,104630.0,104620.0,1.00586285]
[1748755948622,1.12809438,104630.0,104620.0,1.00586285]
[1748755948820,1.12809438,104630.0,104620.0,1.01480647]
[1748755948821,1.41773438,104630.0,104620.0,1.01480647]
[1748755949000,1.40173438,104630.0,104620.0,1.00586285]
[1748755949612,1.38633438,104630.0,104620.0,1.00586285]
[1748755949911,1.38633438,104630.0,104620.0,1.01480631]
[1748755950140,1.38633438,104630.0,104620.0,1.00586285]
[1748755950357,1.38633438,104630.0,104620.0,1.01480631]
[1748755950639,1.38633438,104630.0,104620.0,1.00586285]
[1748755951670,1.38633438,104630.0,104620.0,1.01480631]
[1748755951887,1.38633438,104630.0,104620.0,1.00586285]
[1748755952186,1.38633438,104630.0,104620.0,1.01480631]
[1748755952324,1.38633438,104630.0,104620.0,1.00586285]
[1748755953373,1.35763238,104630.0,104620.0,1.00586285]
[1748755953952,1.35763238,104630.0,104620.0,1.01480614]
[1748755954158,1.35763238,104630.0,104620.0,1.01480606]
[1748755954365,1.35763238,104630.0,104620.0,1.00586285]
[1748755954798,1.35763238,104630.0,104620.0,1.01480606]
[1748755955162,1.35763238,104630.0,104620.0,1.00586285]
[1748755956348,1.37303238,104630.0,104620.0,1.01480609]
[1748755956744,1.38963238,104630.0,104620.0,1.01480616]
[1748755956946,1.38963238,104630.0,104620.0,1.01480617]
[1748755957147,1.38963238,104630.0,104620.0,1.01480651]
[1748755957577,1.38963238,104630.0,104620.0,1.00586285]
[1748755957777,1.38963238,104630.0,104620.0,1.01480651]
[1748755958918,1.37423238,104630.0,104620.0,1.00586285]
[1748755959121,1.35763238,104630.0,104620.0,1.01480769]
[1748755959334,1.35763238,104630.0,104620.0,1.00586285]
[1748755959572,1.35763238,104630.0,104620.0,1.01480768]
[1748755959782,1.35763238,104630.0,104620.0,1.00586285]
[1748755959971,1.35763238,104630.0,104620.0,1.01480975]
[1748755960388,1.35763238,104630.0,104620.0,1.00586285]
[1748755960828,1.35763238,104630.0,104620.0,1.00836285]
[1748755960970,1.35763238,104630.0,104620.0,1.01731017]
[1748755961607,1.35763238,104630.0,104620.0,1.00836285]
[1748755962011,1.35763238,104630.0,104620.0,1.01731017]
[1748755962653,1.35763238,104630.0,104620.0,1.01731333]
[1748755962855,1.35763238,104630.0,104620.0,1.01732055]
[1748755963531,1.35763238,104630.0,104620.0,1.01482056]
[1748755963749,1.35763238,104630.0,104620.0,1.00586285]
[1748755963971,1.35763238,104630.0,104620.0,1.01482086]
[1748755965135,1.35763238,104630.0,104620.0,1.00586285]
[1748755966423,1.35763238,104630.0,104620.0,1.0148212]
[1748755966883,1.35763238,104630.0,104620.0,1.01482125]
[1748755967455,1.35763238,104630.0,104620.0,1.00586285]
[1748755967617,1.35763238,104630.0,104620.0,1.01482125]
[1748755967977,1.35763238,104630.0,104620.0,1.00586285]
[1748755968451,1.35763238,104630.0,104620.0,1.0148224]
[1748755968657,1.35763238,104630.0,104620.0,1.01482239]
[1748755969009,1.36697349,104630.0,104620.0,1.01482239]
[1748755969649,1.36697349,104630.0,104620.0,1.00586285]
[1748755969884,1.36697349,104630.0,104620.0,1.01482239]
[1748755970086,1.36697349,104630.0,104620.0,1.01482238]
[1748755970496,1.38307349,104630.0,104620.0,1.01482238]
[1748755970696,1.39957349,104630.0,104620.0,1.01482241]
[1748755971517,1.39957349,104630.0,104620.0,1.00586285]